[Event "1000 GM Labor Day Super Swiss 2024"]
[Site "San Jose"]
[Date "2024.09.03"]
[Round "7.7"]
[White "Batchuluun, Tsegmed"]
[Black "Wu, Derek"]
[Result "1-0"]
[Annotator "TA"]
[ECO "E11"]
[WhiteElo "2458"]
[BlackElo "2278"]
[PlyCount "111"]
[EventDate "2024.08.30"]
[EventType "swiss"]
[EventCountry "USA"]
[SourceTitle "playchess.com"]
[Source "ChessBase"]
[SourceQuality "1"]
[TimeControl "5400+30"]

{[%evp 12,111,10,18,33,32,37,28,40,34,36,40,39,50,45,48,41,30,28,29,33,40,35,34,39,39,19,0,13,17,0,0,14,10,16,15,48,22,25,10,74,74,93,16,6,0,36,31,34,31,37,21,32,0,0,0,0,0,145,83,108,104,146,155,183,183,183,176,140,187,212,162,29978,29979,29981,29978,29984,29985,29985,29986,29993,366,336,253,228,178,29985,5700,5206,360,427,398,391,387,29983,29981,29981,29982,29982,29983,29983,29983]} 1. d4 {[%emt 0:00:01]} Nf6 {[%emt 0:03:57]} 2. c4 {[%emt 0:00:06]} e6 {[%emt 0:00:10]} 3. Nf3 {[%emt 0:00:05]} d5 {[%emt 0:00:19]} 4. g3 {[%emt 0:00:25]} Bb4+ {[%emt 0:00:26]} 5. Bd2 {[%emt 0:00:06]} a5 {[%emt 0:00:26]} 6. Bg2 {[%emt 0:01:33]} O-O {[%emt 0:00:32]} 7. Qc2 {[%emt 0:02:34]} c5 {[%emt 0:00:41]} 8. cxd5 {[%emt 0:00:12]} cxd4 {[%emt 0:00:08]} 9. Nxd4 {[%emt 0:00:13]} Qb6 {[%emt 0:00:17] White has an edge.} 10. e3 {[%emt 0:00:05]} exd5 {[%emt 0:00:15]} 11. O-O {[%emt 0:01:12]} Nc6 {[%emt 0:00:26]} 12. Nxc6 {[%emt 0:01:43]} bxc6 {[%emt 0:00:07]} 13. Rc1 {[%emt 0:01:17]} Rb8 {[%emt 0:00:13]} 14. Bxb4 {[%emt 0:03:47]} Qxb4 {[%emt 0:00:09]} 15. b3 {[%emt 0:00:47][%cal Ob1d2]} Be6 {[%emt 0:01:20]} 16. Nc3 {[%emt 0:00:19]} c5 {[%emt 0:00:24]} 17. Ne2 {[%emt 0:00:24]} Rfc8 {[%emt 0:03:15]} 18. Nf4 {[%emt 0:00:06]} c4 {[%emt 0:08:19]} 19. Nxe6 {[%emt 0:08:22]} fxe6 {[%emt 0:00:04]} 20. bxc4 {[%emt 0:00:04]} Rxc4 {[%emt 0:05:02]} 21. Qd1 {[%emt 0:00:15]} Rbc8 {[%emt 0:04:24]} 22. Bh3 {[%emt 0:02:24]} Kf7 {[%emt 0:01:50]} 23. Rcb1 {[%emt 0:06:16]} Qc5 {[%emt 0:04:37]} 24. Rb7+ {[%emt 0:02:52]} Rc7 {[%emt 0:00:09]} 25. Rab1 {[%emt 0:00:19]} (25. Rxc7+ {simplifies} Qxc7 26. Bf1 Rc3 27. Rb1) 25... Ke7 {[%emt 0:09:37]} (25... Rb4 $11 26. Rxc7+ Qxc7) 26. Bf1 $1 $16 {[%emt 0:17:29]} Rc2 {[%emt 0:03:35] [#]} 27. R1b5 {[%emt 0:22:29]} (27. Bd3 $1 $16 Rxa2 28. R1b5 (28. Rc1 Qxc1 29. Qxc1 Rxb7 $11)) 27... Qc3 $11 {[%emt 0:04:52]} 28. Qd3 {[%emt 0:08:40]} (28. Rxc7+ {simplifies} Qxc7 29. Rb7 Qxb7 30. Qxc2 Qb4 31. h3) 28... Ne4 {[%emt 0:05:35]} 29. Rxc7+ {[%emt 0:07:25]} Qxc7 {[%emt 0:00:05]} 30. Qa3+ {[%emt 0:00:05]} Qd6 {[%emt 0:02:29]} 31. Qxa5 {[%emt 0:04:27] Bd3 is the strong threat.} Rxf2 {[%emt 0:06:04]} 32. Rb7+ {[%emt 0:00:48]} Kf6 {[%emt 0:00:16][%cal Of2h2]} 33. Qa7 {[%emt 0:00:17]} Qf8 {[%emt 0:00:43] Prevents Rf7+.} 34. Bd3 $36 {[%emt 0:01:36][%mdl 2048] Bxe4 would now be deadly. White has the initiative.} Rf5 {[%emt 0:10:35] [#]} (34... Rd2 $1 $11 {keeps the balance.} 35. Bxe4 (35. Qd4+ e5 $11) 35... Rd1+ 36. Kg2 Rd2+ 37. Kg1 dxe4) 35. Bxe4 {[%emt 0:01:34]} (35. Qd4+ $142 $1 Kg6 36. Bxe4 dxe4 37. Qxe4) 35... dxe4 $16 {[%emt 0:00:09][%mdl 4096] Endgame. KQR-KQR} 36. Qd4+ {[%emt 0:00:03]} Kg6 {[%emt 0:00:14]} 37. Qxe4 {[%emt 0:00:07][%cal Og3g4] Strongly threatening g4! White has more active pieces.} Kh6 {[%emt 0:06:19]} 38. Qxe6+ {[%emt 0:01:45]} g6 {[%emt 0:00:05] And now ...Rf1+ would win.} 39. Qe4 {[%emt 0:03:49]} Rf1+ {[%emt 0:02:34]} 40. Kg2 {[%emt 0:00:03][%cal Re4h4]} Rf2+ {[%emt 0:00:14]} 41. Kh3 {[%emt 0:00:45][%cal Re4h4]} Qc8+ $2 {[%emt 0:07:04]} (41... Qf6 $18 42. a4 Qf5+ 43. Qxf5 gxf5) 42. g4 {[%emt 0:00:08]} Qd8 {[%emt 0:01:52]} 43. Re7 {[%emt 0:01:12]} Qa5 {[%emt 0:05:40]} 44. Qd4 {[%emt 0:01:34]} Rf3+ {[%emt 0:01:08]} 45. Kg2 {[%emt 0:00:06]} Qa8 {[%emt 0:00:17]} 46. Qe4 $2 {[%emt 0:02:16]} (46. g5+ {mates} Kh5 47. Rxh7+ Kxg5 48. h4+ Kf5 49. Qd7+ Kf6 50. Qe7+ Kf5 51. Rf7+ Kg4 52. Qg5#) 46... Rf8 {[%emt 0:01:18]} 47. Kg3 {[%emt 0:00:43][%cal Og4g5]} Qb8+ {[%emt 0:00:47]} 48. Kh3 {[%emt 0:00:19][%cal Og4g5] g5+! would kill now.} (48. Qe5 Qxe5+ 49. Rxe5 Ra8 $11) 48... Qc8 $2 {[%emt 0:00:15]} (48... Qb5 $18 49. Kg3 Qb8+ 50. Kh3 (50. Qe5 Qxe5+ 51. Rxe5 Ra8 $11) 50... Qb5) 49. a4 {[%emt 0:00:17]} (49. Qe5 $142 Rf5 50. gxf5 Qxf5+ 51. Qxf5 gxf5 52. Kg3 Kg5 53. Re5 (53. Rxh7 Kg6 54. Rc7 Kg5 55. a4 Kf6 56. Kf4 Ke6 57. a5 Kd6) 53... h6 54. a4) 49... Qc5 $18 {[%emt 0:01:44]} 50. Qe5 $2 {[%emt 0:00:50]} (50. Rb7 {aiming for Re7.} Rf6 51. Rb5) 50... Rf3+ {[%emt 0:03:06]} 51. Kg2 {[%emt 0:00:06] Intending g5+ and mate.} Qc6 {[%emt 0:00:07]} 52. Qe4 {[%emt 0:00:28]} Qf6 {[%emt 0:00:53]} (52... Rf6 $18 53. Qxc6 Rxc6) 53. h4 {[%emt 0:01:19] White mates.} Rf2+ {[%emt 0:01:06]} 54. Kg3 {[%emt 0:00:04]} Rf3+ {[%emt 0:00:28]} 55. Qxf3 {[%emt 0:00:09]} Qxe7 {[%emt 0:00:16]} 56. g5+ {[%emt 0:00:04] Weighted Error Value: White=0.24 (precise) /Black=0.40.  Mistake:       	White=3     	Black=5      Inaccurate:     	White=2     	Black=3      OK:         	White=18    	Black=12     Best:        	White=4     	Black=4      Strong:       	White=1     	---} 1-0

[Event "1000 GM Labor Day Super Swiss 2024"]
[Site "San Jose"]
[Date "2024.09.03"]
[Round "7.8"]
[White "Montes Orozco, Miguel Angel"]
[Black "Hevia Alejano, Carlos Antonio"]
[Result "0-1"]
[Annotator "TA"]
[ECO "B15"]
[WhiteElo "2155"]
[BlackElo "2414"]
[PlyCount "66"]
[EventDate "2024.08.30"]
[EventType "swiss"]
[EventCountry "USA"]
[SourceTitle "playchess.com"]
[Source "ChessBase"]
[SourceQuality "1"]
[TimeControl "5400+30"]

{[%evp 10,66,51,67,95,97,109,112,125,125,150,156,152,146,134,96,106,95,108,98,151,145,151,159,187,106,123,53,61,-163,-156,-178,-186,-180,-182,-274,-261,-277,-272,-267,-272,-261,-269,-300,-273,-283,-275,-298,-293,-312,-303,-318,-316,-347,-310,-350,-320,-383,-396]} 1. d4 {[%emt 0:00:04]} g6 {[%emt 0:04:46]} 2. e4 {[%emt 0:00:46]} c6 {[%emt 0:00:55]} 3. Nc3 {[%emt 0:09:29]} d5 {[%emt 0:01:50]} 4. f3 {[%emt 0:02:41]} Bg7 {[%emt 0:01:54]} 5. Be3 {[%emt 0:01:02]} e6 {[%emt 0:19:56]} 6. Qd2 {[%emt 0:08:44]} b6 {[%emt 0:03:36]} 7. O-O-O {[%emt 0:08:04]} Ba6 {[%emt 0:05:40]} 8. Nge2 {[%emt 0:03:04]} h5 {[%emt 0:07:41] White is better.} 9. Kb1 {[%emt 0:10:59]} Ne7 {[%emt 0:03:55]} 10. g4 {[%emt 0:09:25]} Bxe2 {[%emt 0:13:02]} 11. Bxe2 {[%emt 0:01:15]} Nd7 {[%emt 0:00:04]} 12. exd5 {[%emt 0:11:29]} cxd5 {[%emt 0:03:52]} 13. Ba6 {[%emt 0:02:44]} Kf8 {[%emt 0:07:10]} 14. h3 {[%emt 0:08:33]} b5 {[%emt 0:01:06]} 15. Bxb5 $16 {[%emt 0:00:22]} ({Stronger than} 15. Nxb5 Qb6 16. Qc3 Qxa6 $17) 15... Rb8 {[%emt 0:01:00]} 16. Bf4 {[%emt 0:00:58]} Rb6 {[%emt 0:00:47]} 17. Qe2 {[%emt 0:00:39]} (17. Be2 $18) 17... Nc6 {[%emt 0:03:18]} 18. Bd6+ {[%emt 0:05:57] This pair of bishops is nice. Black is weak on the light squares} (18. Be3 $16) 18... Kg8 $14 {[%emt 0:00:02]} 19. Bc5 {[%emt 0:00:17] This costs White the game.} (19. Bxc6 $14 {keeps the upper hand.} Rxc6 20. Bf4) 19... Nxc5 $19 {[%emt 0:01:49]} 20. dxc5 {[%emt 0:00:02] [#]} Rb8 {[%emt 0:00:05]} 21. Bxc6 {[%emt 0:03:35]} Bxc3 {[%emt 0:00:02]} 22. Bb5 {[%emt 0:02:36]} (22. b3 $142) 22... Qa5 $1 {[%emt 0:01:40]} 23. bxc3 {[%emt 0:00:05]} (23. a4 $2 {gets mated.} Qb4 24. b3 Qa3 25. gxh5 Qb2#) 23... Rxb5+ {[%emt 0:00:05]} 24. Kc1 {[%emt 0:00:04]} Rxc5 {[%emt 0:00:14] ...Qa3+ would now be deadly.} 25. Rd3 {[%emt 0:01:30]} Rxc3 {[%emt 0:03:16]} ({But not} 25... Qxa2 26. Kd2 $19) 26. Qd2 {[%emt 0:00:36]} Qa3+ {[%emt 0:00:05]} 27. Kb1 {[%emt 0:00:53]} Rxd3 {[%emt 0:00:10]} 28. cxd3 {[%emt 0:00:05]} hxg4 {[%emt 0:01:39]} 29. fxg4 {[%emt 0:00:05] KQR-KQR} Kg7 {[%emt 0:00:06]} 30. Ka1 {[%emt 0:01:46]} Rc8 {[%emt 0:00:56]} 31. Qb2+ {[%emt 0:01:01]} Qxb2+ {[%emt 0:00:08]} 32. Kxb2 {[%emt 0:00:01]} g5 {[%emt 0:00:21]} 33. Rf1 {[%emt 0:00:16]} d4 {[%emt 0:00:44] Weighted Error Value: White=0.33/Black=0.06 (flawless) .  Loses game:     	White=1     	---        Mistake:       	White=3     	Black=1      OK:         	White=9     	Black=12     Best:        	White=1     	Black=5      Strong:       	---       	Black=1} 0-1

[Event "1000 GM Labor Day Super Swiss 2024"]
[Site "San Jose"]
[Date "2024.09.03"]
[Round "7.9"]
[White "Yim, Sung Ho"]
[Black "Bansal, Advay"]
[Result "1-0"]
[Annotator "TA"]
[ECO "D91"]
[WhiteElo "2291"]
[BlackElo "2234"]
[PlyCount "53"]
[EventDate "2024.08.30"]
[EventType "swiss"]
[EventCountry "USA"]
[SourceTitle "playchess.com"]
[Source "ChessBase"]
[SourceQuality "1"]
[TimeControl "5400+30"]

{[%evp 15,53,24,22,15,26,48,20,16,29,27,23,31,200,180,161,126,202,38,272,164,152,160,230,243,261,246,345,336,351,358,370,304,447,416,450,430,606,600,645,622]} 1. d4 {[%emt 0:10:14]} Nf6 {[%emt 0:00:08]} 2. c4 {[%emt 0:00:06]} g6 {[%emt 0:00:03]} 3. Nc3 {[%emt 1:21:40]} d5 {[%emt 0:00:05]} 4. Nf3 {[%emt 0:00:00]} Bg7 {[%emt 0:00:12]} 5. Bg5 {[%emt 0:00:00]} dxc4 {[%emt 0:00:09]} 6. e4 {[%emt 0:00:00][%cal Be2e4,Be4e5][%mdl 32]} c5 {[%emt 0:00:03]} 7. d5 {[%emt 0:00:00][%cal Bd4d5,Bd5d6][%mdl 32]} b5 {[%emt 0:00:04]} 8. d6 {[%emt 0:00:00]} Bb7 $1 {[%emt 0:01:22]} 9. e5 {[%emt 0:00:00]} (9. Nxb5 Qa5+ (9... Bxe4 $2 10. Nc7+ Kf8 11. Bxc4 $18) 10. Nd2 Qxb5 $17) 9... Ne4 $1 {[%emt 0:00:06]} 10. Nxe4 {[%emt 0:00:00]} (10. dxe7 Qxd1+ 11. Rxd1 Nxg5 12. Nxg5 a6 $15 (12... Bxe5 13. Nxb5 h6 14. f4 $11)) (10. Bxe7 Qa5 11. Be2 Nxc3 12. bxc3 Qxc3+ 13. Kf1 Nc6 $17 (13... Bxe5 $2 14. Rc1 $18)) 10... Bxe4 {[%emt 0:00:07]} 11. a4 {[%emt 0:00:00] The position is equal.} (11. Bxe7 Qa5+ 12. Qd2 Qxd2+ 13. Nxd2 Bd5 $15) (11. dxe7 Qxd1+ 12. Rxd1 Nd7 $14 (12... Nc6 13. Bf6 $11)) 11... a6 {[%emt 0:03:31]} 12. Bxe7 {[%emt 0:00:00]} Qa5+ {[%emt 0:00:04]} 13. Nd2 {[%emt 0:00:00][%cal Bf3d2,Bd2c4,Bc4e3][%mdl 32] [#] Threatens to win with axb5.} Bd5 $2 {[%emt 0:03:29]} (13... Bh6 $1 $14) 14. axb5 $18 {[%emt 0:00:00]} Qxb5 {[%emt 0:00:15]} 15. f4 {[%emt 0:00:00]} Qxb2 {[%emt 0:14:23]} (15... Nc6 $16 {was called for.}) 16. Qa4+ $2 {[%emt 0:00:00]} (16. Nxc4 Qb4+ 17. Qd2 Nd7 $16) (16. Bxc4 $18 Bxc4 17. Rb1 (17. Nxc4 Qb4+ 18. Nd2 Qxf4 $14)) 16... Qb5 $2 {[%emt 0:10:10]} ({Black should play} 16... Bc6 $1 $14 17. Qa2 (17. Qxc4 $2 Qxa1+ 18. Kf2 Qb2 $19) (17. Qa5 Nd7 $11) 17... c3) 17. Nxc4 {[%emt 0:00:00] Nb6 would now be deadly.} Qxa4 {[%emt 0:02:55]} 18. Rxa4 {[%emt 0:00:00]} Nd7 {[%emt 0:00:18] [#] Inhibits Nb6.} (18... Ra7 $16 {was necessary.} 19. Ne3 (19. Nb6 Bc6 $16) 19... Bc6) 19. Ne3 $1 {[%emt 0:00:00][%csl LRa6,LRd5]} Bb3 {[%emt 0:08:13]} 20. Ra3 $40 {[%emt 0:00:00][%mdl 128] White attacks with force.} (20. Rxa6 $6 Rxa6 21. Bxa6 f6) 20... Be6 {[%emt 0:03:05]} (20... Rb8 $142 21. Bxa6 (21. Rxa6 f6 $18) 21... f6) 21. Bc4 {[%emt 0:00:00]} (21. Bxa6 h5 22. O-O f6 $18) (21. Rxa6 Rxa6 22. Bxa6 f6) 21... Bxc4 {[%emt 0:00:51]} 22. Nxc4 {[%emt 0:00:00]} g5 {[%emt 0:00:14]} 23. g3 {[%emt 0:00:00][%cal Bg2g3,Bg3f4][%mdl 32]} (23. fxg5 Nxe5 24. Nb6 Ra7 $18) 23... Rg8 {[%emt 0:02:13]} (23... h5 $142 24. O-O (24. fxg5 Nxe5 25. Nb6 Rb8 $16) (24. Bxg5 f6 $18) 24... Rg8 25. Bxg5 f6 26. exf6 Bxf6 27. Re1+ Kf8 28. Bxf6 Nxf6) 24. Ke2 {[%emt 0:00:00]} ({Not} 24. fxg5 Bxe5 25. O-O Bd4+ 26. Kg2 Rg6 $18) ({Don't do} 24. Bxg5 f6 25. exf6 Nxf6 26. Bxf6 Bxf6 $18) 24... gxf4 {[%emt 0:02:26]} 25. gxf4 {[%emt 0:00:00] And now Rg1 would win. White is clearly winning.} Bh6 {[%emt 0:01:36]} (25... Bf8 $142 26. Bh4 h5) 26. Kf3 {[%emt 0:00:00]} Bf8 {[%emt 0:03:26]} 27. Bh4 {[%emt 0:00:00] Weighted Error Value: White=0.25 (precise) /Black=0.53.  Loses game:     	---       	Black=2      Missed win:     	White=1     	---        Mistake:       	---       	Black=5      Inaccurate:     	White=1     	---        OK:         	White=8     	Black=4      Best:        	White=2     	Black=1      Strong:       	White=1     	Black=1} 1-0

[Event "1000 GM Labor Day Super Swiss 2024"]
[Site "San Jose"]
[Date "2024.09.03"]
[Round "7.10"]
[White "Guo, Andrew"]
[Black "Yoo, Christopher Woojin"]
[Result "0-1"]
[Annotator "TA"]
[ECO "E12"]
[WhiteElo "2207"]
[BlackElo "2616"]
[PlyCount "88"]
[EventDate "2024.08.30"]
[EventType "swiss"]
[EventCountry "USA"]
[SourceTitle "playchess.com"]
[Source "ChessBase"]
[SourceQuality "1"]
[TimeControl "5400+30"]

{[%evp 10,88,-5,-4,0,0,0,0,0,-12,-9,-2,-12,-14,-14,-18,-7,0,-12,-2,0,0,0,-18,-16,-31,-26,-13,-23,-29,-16,-20,0,0,0,-7,8,-30,-19,-21,-32,-37,-37,-56,-50,-61,-46,-60,-64,-64,-64,-97,-93,-103,-109,-99,-105,-144,-153,-160,-146,-173,-178,-179,-184,-196,-183,-199,-208,-204,-208,-245,-243,-258,-249,-284,-268,-249,-266,-331,-322]} 1. d4 {[%emt 0:00:03]} Nf6 {[%emt 0:00:35]} 2. Nf3 {[%emt 0:00:16]} b6 {[%emt 0:00:29]} 3. c4 {[%emt 0:00:23]} e6 {[%emt 0:00:04]} 4. a3 {[%emt 0:00:04]} Bb7 {[%emt 0:00:03]} 5. Bg5 {[%emt 0:00:23]} Be7 {[%emt 0:01:49]} 6. Nc3 {[%emt 0:00:24]} O-O {[%emt 0:03:09]} 7. e3 {[%emt 0:01:37]} h6 {[%emt 0:01:34]} 8. Bh4 {[%emt 0:00:59]} c5 {[%emt 0:02:18] The position is equal.} 9. Be2 {[%emt 0:04:12]} cxd4 {[%emt 0:01:14]} 10. Qxd4 {[%emt 0:03:12]} Nc6 {[%emt 0:04:02]} 11. Qd1 {[%emt 0:00:20]} Rc8 {[%emt 0:01:36]} 12. O-O {[%emt 0:02:11]} Na5 {[%emt 0:03:21][%cal Bc6a5,Ba5b7,Bb7c5][%mdl 32]} 13. Nd2 $1 {[%emt 0:00:55]} Ba6 {[%emt 0:05:43][%cal Ra6c4]} 14. Nb5 {[%emt 0:07:54]} Bxb5 {[%emt 0:03:57]} 15. cxb5 {[%emt 0:00:41]} d5 {[%emt 0:06:03]} 16. Qa4 {[%emt 0:04:32]} Qc7 {[%emt 0:03:52] Prevents Rac1.} 17. Bd3 {[%emt 0:10:01] Repels Qc2} Nb7 {[%emt 0:02:56]} 18. Qd1 {[%emt 0:02:01]} Nc5 {[%emt 0:02:40]} 19. Be2 {[%emt 0:03:43]} Nfe4 {[%emt 0:02:55]} 20. Bxe7 {[%emt 0:01:36]} Qxe7 {[%emt 0:00:51]} 21. Nf3 {[%emt 0:00:20][%cal Bd2f3,Bf3d4,Bd4c6,Bc6b4][%mdl 32]} Rc7 {[%emt 0:04:52]} 22. Nd4 {[%emt 0:00:59]} Qf6 {[%emt 0:01:06]} 23. Rb1 {[%emt 0:04:15]} Rfc8 $36 {[%emt 0:01:52][%mdl 2048] White is under pressure.} 24. Nc6 {[%emt 0:01:20] [#]} a6 $1 {[%emt 0:01:19]} 25. a4 {[%emt 0:02:16]} (25. Nd4 a5) 25... Nd6 {[%emt 0:04:47][%cal Oc5a4] Excellent horsemanship.} 26. Nb4 {[%emt 0:03:01]} a5 {[%emt 0:01:14]} 27. Nc6 {[%emt 0:46:22]} Nf5 {[%emt 0:00:23]} 28. b4 {[%emt 0:00:00]} axb4 {[%emt 0:00:59]} 29. Rxb4 {[%emt 0:00:00]} Ne7 {[%emt 0:00:38]} 30. Nxe7+ {[%emt 0:00:00] Black continues to play with concentration.} Qxe7 {[%emt 0:04:19]} 31. Rd4 {[%emt 0:00:00]} Ne4 {[%emt 0:02:34]} 32. Qa1 {[%emt 0:00:00]} Nc3 {[%emt 0:02:20]} 33. Rd2 {[%emt 0:00:00]} Qb4 {[%emt 0:02:37]} 34. Rb2 {[%emt 0:00:00]} Qxa4 {[%emt 0:05:06] Black has more active pieces.} 35. Qxa4 {[%emt 0:00:00]} Nxa4 {[%emt 0:00:03]} 36. Rb4 {[%emt 0:00:00]} Nc3 {[%emt 0:00:55]} 37. Bd3 {[%emt 0:00:00]} Kf8 {[%emt 0:02:11]} 38. Ra1 {[%emt 0:00:00] [#]} Ne4 $1 {[%emt 0:00:44][%mdl 512]} 39. Rbb1 {[%emt 0:00:00] [#] Wards off Rc1+} Nd2 $1 {[%emt 0:01:05]} 40. Rd1 {[%emt 0:00:00]} Nb3 {[%emt 0:00:12]} 41. Rab1 {[%emt 0:00:00]} Rc1 {[%emt 0:00:31]} 42. Rdxc1 {[%emt 0:00:00]} Rxc1+ {[%emt 0:00:39]} 43. Rxc1 {[%emt 0:00:00]} Nxc1 {[%emt 0:00:02]} 44. Bf1 {[%emt 0:00:00]} Ke7 {[%emt 0:00:39] Weighted Error Value: White=0.11 (very precise) /Black=0.02 (flawless) .  Inaccurate:     	White=3     	---        OK:         	White=14    	Black=20     Best:        	---       	Black=1      Strong:       	White=1     	---        Brilliant:      	---       	Black=1} 0-1

[Event "1000 GM Labor Day Super Swiss 2024"]
[Site "San Jose"]
[Date "2024.09.03"]
[Round "7.12"]
[White "Chinni, Rishabh"]
[Black "Sivakumar, Shaashwath"]
[Result "1/2-1/2"]
[Annotator "TA"]
[ECO "B90"]
[WhiteElo "2220"]
[BlackElo "2321"]
[PlyCount "59"]
[EventDate "2024.08.30"]
[EventType "swiss"]
[EventCountry "USA"]
[SourceTitle "playchess.com"]
[Source "ChessBase"]
[SourceQuality "1"]
[TimeControl "5400+30"]

{[%evp 20,59,4,10,31,0,0,10,0,-11,0,0,0,2,0,-17,0,0,0,0,0,0,0,0,0,0,5,0,8,-22,0,0,0,0,68,0,0,0,64,0,60,0]} 1. e4 {[%emt 0:00:01]} c5 {[%emt 0:02:24]} 2. Nf3 {[%emt 0:00:19]} d6 {[%emt 0:02:20]} 3. d4 {[%emt 0:00:08]} cxd4 {[%emt 0:00:03]} 4. Nxd4 {[%emt 0:00:05]} Nf6 {[%emt 0:00:02]} 5. Nc3 {[%emt 0:00:06]} a6 {[%emt 0:00:01]} 6. f3 {[%emt 0:00:06]} e5 {[%emt 0:00:02]} 7. Nb3 {[%emt 0:00:04]} Be7 {[%emt 0:00:08]} 8. Be3 {[%emt 0:00:45]} Be6 {[%emt 0:00:04]} 9. Qd2 {[%emt 0:00:05]} h5 {[%emt 0:00:03]} 10. Nd5 {[%emt 0:00:09]} Nxd5 {[%emt 0:00:06]} 11. exd5 {[%emt 0:00:10]} Bf5 {[%emt 0:00:05]} 12. c4 {[%emt 0:00:27]} O-O {[%emt 0:03:43]} 13. Be2 {[%emt 0:00:22]} a5 {[%emt 0:00:07] The position is equal.} 14. Rc1 {[%emt 0:00:21]} a4 {[%emt 0:00:27]} 15. Na1 {[%emt 0:01:03]} Qa5 {[%emt 0:00:10]} 16. Qxa5 {[%emt 0:05:58]} Rxa5 {[%emt 0:00:06]} 17. O-O {[%emt 0:00:10]} Nd7 {[%emt 0:00:05]} 18. Nc2 {[%emt 0:00:53]} Bxc2 {[%emt 0:21:53]} 19. Rxc2 {[%emt 0:00:11]} Rc8 {[%emt 0:07:15]} 20. Rcc1 {[%emt 0:11:51]} g6 {[%emt 1:01:26]} 21. g4 {[%emt 0:11:38]} hxg4 {[%emt 0:00:00]} 22. fxg4 {[%emt 0:00:41]} Bd8 {[%emt 0:00:00]} 23. g5 {[%emt 0:09:05]} Bb6 $1 {[%emt 0:00:00]} 24. Rc3 {[%emt 0:13:45]} Rc7 {[%emt 0:00:00]} 25. Bxb6 {[%emt 0:01:26]} Nxb6 {[%emt 0:00:00]} 26. Rf6 {[%emt 0:00:42]} Nc8 {[%emt 0:00:00]} ({Black should play} 26... a3 $1 $11 27. Rxa3 (27. Rxd6 Nxd5 28. Rxa3 Rxa3 $11) 27... Rxa3 28. bxa3 Nxc4) 27. Bg4 {[%emt 0:43:29] White has more active pieces.} ({White should try} 27. h4 $14) 27... Rac5 $11 28. Be2 (28. b3 $11) 28... Ra5 $14 {[%emt 0:04:00][%cal Oa4a3]} 29. Bg4 {[%emt 0:01:00]} (29. h4 $14) 29... Nb6 {[%emt 0:00:30]} (29... Rac5 $11) 30. Be2 {[%emt 0:00:30] Weighted Error Value: White=0.14 (very precise) /Black=0.13 (very precise) .  Mistake:       	White=4     	Black=2      Inaccurate:     	White=1     	---        OK:         	White=5     	Black=8      Best:        	White=1     	---        Strong:       	---       	Black=1} (30. Rxd6 $14 Rxc4 31. Rd8+ Kg7 32. Rxc4 Nxc4 33. d6) 1/2-1/2